fUSD/lending_fUSD_20251012
["ID","MTS","AMOUNT","RATE_DAILY","PERIOD"]
[391073074,1760301672460,-202.54,0.00029246,120]
[391073075,1760301672507,-500.0,0.00029246,120]
[391073077,1760301672554,-500.0,0.00029246,120]
[391073080,1760301672604,-500.0,0.00029246,120]
[391073081,1760301672656,-500.0,0.00029246,120]
[391073083,1760301672706,-500.0,0.00029246,120]
[391073085,1760301672749,-551.16958926,0.00029246,120]
[391073086,1760301672798,-500.0,0.00029246,120]
[391073087,1760301672847,-500.0,0.00029246,120]
[391073088,1760301672892,-500.0,0.00029246,120]
[391073089,1760301672936,-500.0,0.00029246,120]
[391073091,1760301672985,-500.0,0.00029246,120]
[391073093,1760301673032,-500.0,0.00029246,120]
[391073095,1760301673075,-228.2,0.00029246,120]
[391073097,1760301673119,-500.0,0.00029246,120]
[391073099,1760301673166,-500.0,0.00029246,120]
[391073101,1760301673213,-500.0,0.00029246,120]
[391073103,1760301673260,-500.0,0.00029246,120]
[391073106,1760301673310,-500.0,0.00029246,120]
[391073107,1760301673355,-500.0,0.00029246,120]
[391073109,1760301673403,-500.0,0.00029246,120]
[391073111,1760301673450,-276.82,0.00029246,120]
[391073114,1760301673498,-500.0,0.00029246,120]
[391073116,1760301673541,-500.0,0.00029246,120]
[391073118,1760301673587,-400.0,0.00029246,120]
[391073119,1760301673634,-500.0,0.00029246,120]
[391073122,1760301673681,-500.0,0.00029246,120]
[391073123,1760301673729,-500.0,0.00029246,120]
[391073125,1760301673778,-500.0,0.00029246,120]
[391073127,1760301673828,-500.0,0.00029246,120]
[391073129,1760301673875,-475.81,0.00029246,120]
[391073131,1760301673920,-500.0,0.00029246,120]
[391073133,1760301673968,-500.0,0.00029246,120]
[391073135,1760301674018,-300.31,0.00029246,120]
[391073137,1760301674069,-500.0,0.00029246,120]
[391073139,1760301674120,-500.0,0.00029246,120]
[391073142,1760301674170,-500.0,0.00029246,120]
[391073143,1760301674222,-500.0,0.00029246,120]
[391073145,1760301674273,-500.0,0.00029246,120]
[391073148,1760301674325,-500.0,0.00029246,120]
[391073149,1760301674378,-500.0,0.00029246,120]
[391073151,1760301674431,-500.0,0.00029246,120]
[391073153,1760301674482,-500.0,0.00029246,120]
[391073155,1760301674533,-500.0,0.00029246,120]
[391073157,1760301674584,-500.0,0.00029246,120]
[391073159,1760301674635,-500.0,0.00029246,120]
[391073162,1760301674685,-500.0,0.00029246,120]
[391073164,1760301674738,-500.0,0.00029246,120]
[391073166,1760301674796,-231.53,0.00029246,120]
[391073168,1760301674841,-500.0,0.00029246,120]
[391073170,1760301674884,-500.0,0.00029246,120]
[391073172,1760301674928,-500.0,0.00029246,120]
[391073174,1760301674972,-500.0,0.00029246,120]
[391073176,1760301675016,-327.68,0.00029246,120]
[391073178,1760301675060,-500.0,0.00029246,120]
[391073180,1760301675103,-500.0,0.00029246,120]
[391073182,1760301675147,-500.0,0.00029246,120]
[391073184,1760301675198,-427.51,0.00029246,120]
[391073185,1760301675243,-500.0,0.00029246,120]
[391073187,1760301675290,-500.0,0.00029246,120]
[391073190,1760301675340,-500.0,0.00029246,120]
[391073192,1760301675390,-500.0,0.00029246,120]
[391073193,1760301675440,-500.0,0.00029246,120]
[391073196,1760301675488,-500.0,0.00029246,120]
[391073198,1760301675533,-500.0,0.00029246,120]
[391073199,1760301675581,-500.0,0.00029246,120]
[391073201,1760301675637,-500.0,0.00029246,120]
[391073204,1760301675698,-500.0,0.00029246,120]
[391073205,1760301675751,-500.0,0.00029246,120]
[391073208,1760301675807,-500.0,0.00029246,120]
[391073210,1760301675863,-500.0,0.00029246,120]
[391073211,1760301675919,-500.0,0.00029246,120]
[391073213,1760301675976,-500.0,0.00029246,120]
[391073215,1760301676030,-352.24,0.00029246,120]
[391073218,1760301676087,-500.0,0.00029246,120]
[391073220,1760301676136,-262.6,0.00029246,120]
[391073222,1760301676205,-500.0,0.00029246,120]
[391073224,1760301676256,-500.0,0.00029246,120]
[391073226,1760301676307,-186.92,0.00029246,120]
[391073228,1760301676357,-6721.1725864,0.00029246,120]
[391073230,1760301676402,-500.0,0.00029246,120]
[391073239,1760301676826,-500.0,0.00029246,120]
[391073241,1760301676894,-151.56,0.00029246,120]
[391073243,1760301676954,-500.0,0.00029246,120]
[391073245,1760301677000,-500.0,0.00029246,120]
[391073247,1760301677042,-500.0,0.00029246,120]
[391073249,1760301677085,-500.0,0.00029246,120]
[391073251,1760301677127,-500.0,0.00029246,120]
[391073253,1760301677174,-486.88,0.00029246,120]
[391073255,1760301677221,-500.0,0.00029246,120]
[391073257,1760301677263,-500.0,0.00029246,120]
[391073258,1760301677307,-500.0,0.00029246,120]
[391073260,1760301677352,-500.0,0.00029246,120]
[391073263,1760301677399,-500.0,0.00029246,120]
[391073264,1760301677445,-511.04371072,0.00029246,120]
[391073266,1760301677492,-500.0,0.00029246,120]
[391073269,1760301677541,-500.0,0.00029246,120]
[391073270,1760301677586,-401.748,0.00029246,120]
[391073271,1760301677630,-500.0,0.00029246,60]
[391073272,1760301677672,-234.32,0.00029246,60]
[391073273,1760301677715,-500.0,0.00029246,120]
[391073274,1760301677756,-500.0,0.00029246,120]
[391073276,1760301677799,-242.43179746,0.00029246,120]
[391073278,1760301677841,-500.0,0.00029246,120]
[391073280,1760301677882,-500.0,0.00029246,120]
[391073282,1760301677926,-180.71,0.00029246,120]
[391073284,1760301677967,-500.0,0.00029246,120]
[391073286,1760301678011,-500.0,0.00029246,120]
[391073288,1760301678056,-500.0,0.00029246,120]
[391073290,1760301678106,-164.14614691,0.00029246,120]
[391073292,1760301678149,-77450.74285843,0.00029246,30]
[391073294,1760301678196,-3644450.34999115,0.00029246,30]
[391074439,1760302232176,-176.68073024,0.00013248,2]
[391074440,1760302232186,-117.78064263,0.00013649,2]
[391074441,1760302232232,-74.24935737,0.00013649,2]
[391074442,1760302232242,-2373.19801892,0.00013964,2]
[391074443,1760302232251,-195.0,0.00013964,2]
[391074444,1760302232260,-192.03,0.00014051,2]
[391074445,1760302232269,-1000.0,0.00014389,2]
[391074446,1760302232279,-250.0,0.00014418,7]
[391074447,1760302232288,-192.03,0.00014452,2]
[391074448,1760302232297,-300.0,0.00014572,2]
[391074449,1760302232308,-1200.0,0.00014572,2]
[391074450,1760302232317,-300.0,0.00014572,2]
[391074451,1760302232326,-342.10812885,0.00014573,2]
[391074452,1760302232335,-250.0,0.00014573,2]
[391074453,1760302232344,-2000.0,0.00014573,2]
[391074454,1760302232353,-193.29,0.00014822,2]
[391074455,1760302232363,-192.03,0.00014854,2]
[391074456,1760302232372,-150.0,0.00014899,2]
[391074457,1760302232381,-621.7749,0.000149,2]
[391074458,1760302232391,-1104.7843,0.000149,2]
[391074459,1760302232400,-500.0,0.000149,2]
[391074460,1760302232409,-1868.62948297,0.000149,2]
[391074461,1760302232418,-998.89211163,0.000149,2]
[391074462,1760302232426,-979.06055935,0.000149,2]
[391074463,1760302232435,-442.82400318,0.000149,2]
[391074464,1760302232445,-183.423573,0.000149,2]
[391074465,1760302232454,-164.65725272,0.000149,2]
[391074467,1760302232463,-948.19511426,0.000149,2]
[391074469,1760302232472,-500.0,0.00014973,2]
[391074471,1760302232482,-500.72256064,0.00014973,2]
[391074473,1760302232491,-500.0,0.00014973,2]
[391074475,1760302232500,-500.0,0.00014973,2]
[391074477,1760302232509,-500.0,0.00014973,2]
[391074478,1760302232518,-257.24258815,0.00014973,2]
[391074479,1760302232527,-500.0,0.00014973,2]
[391074480,1760302232536,-500.0,0.00014973,2]
[391074481,1760302232545,-502.09984021,0.00014973,2]
[391074482,1760302232556,-431.91556503,0.00014973,2]
[391074483,1760302232564,-500.0,0.00014973,2]
[391074484,1760302232574,-500.0,0.00014973,2]
[391074485,1760302232583,-500.0,0.00014973,2]
[391074486,1760302232592,-1349.0,0.00014986,2]
[391074488,1760302232600,-8574.0,0.00014986,2]
[391074490,1760302232609,-384.426,0.00014991,2]
[391074492,1760302232618,-500.0,0.00014991,2]
[391074494,1760302232627,-151.0,0.00014991,2]
[391074496,1760302232636,-2500.0,0.00014997,2]
[391074498,1760302232644,-151.0,0.00014997,2]
[391074500,1760302232653,-500.0,0.00014999,2]
[391074503,1760302232663,-460.16866352,0.00014999,2]
[391074505,1760302232671,-500.0,0.00014999,2]
[391074506,1760302232680,-302.56133858,0.00014999,2]
[391074507,1760302232688,-500.0,0.00014999,2]
[391074508,1760302232698,-500.0,0.00014999,2]
[391074509,1760302232708,-500.0,0.00014999,2]
[391074510,1760302232717,-500.0,0.00014999,2]
[391074511,1760302232726,-500.0,0.00014999,2]
[391074512,1760302232735,-500.0,0.00014999,2]
[391074513,1760302232744,-500.0,0.00014999,2]
[391074514,1760302232753,-217.11264409,0.00014999,2]
[391074515,1760302232764,-282.88735591,0.00014999,2]
[391074516,1760302232778,-236.28069933,0.00014999,2]
[391074517,1760302232787,-500.0,0.00014999,2]
[391074518,1760302232796,-500.0,0.00014999,2]
[391074519,1760302232806,-500.0,0.00014999,2]
[391074520,1760302232816,-500.0,0.00014999,2]
[391074521,1760302232825,-276.35633114,0.00014999,2]
[391074522,1760302232834,-500.0,0.00014999,2]
[391074523,1760302232844,-500.0,0.00014999,2]
[391074524,1760302232852,-500.0,0.00014999,2]
[391074525,1760302232861,-500.0,0.00014999,2]
[391074526,1760302232869,-500.0,0.00014999,2]
[391074527,1760302232878,-500.0,0.00014999,2]
[391074528,1760302232887,-500.0,0.00014999,2]
[391074529,1760302232896,-500.0,0.00014999,2]
[391074530,1760302232905,-500.0,0.00014999,2]
[391074531,1760302232914,-500.0,0.00014999,2]
[391074532,1760302232923,-500.0,0.00014999,2]
[391074533,1760302232932,-500.0,0.00014999,2]
[391074534,1760302232942,-500.0,0.00014999,2]
[391074535,1760302232951,-350.00000001,0.00014999,2]
[391074536,1760302232959,-213.92,0.00014999,2]
[391074537,1760302232968,-25206.98990879,0.00015,2]
[391074538,1760302232979,-3264.20787647,0.00015,2]
[391074539,1760302232990,-31835.3306355,0.00015,2]
[391074540,1760302233001,-1230.35456567,0.00015,2]
[391074553,1760302238178,-343.97,0.00015,2]
[391074554,1760302238190,-11548.0,0.00015,2]
[391074555,1760302238342,-451.85301947,0.00015,2]
[391074556,1760302238354,-603.22941727,0.00015,2]
[391074557,1760302238365,-20000.0,0.00015,2]
[391074645,1760302240270,-4772.21982545,0.00015,2]
[391074646,1760302240286,-796.00666674,0.00015,2]
[391074647,1760302240304,-4035.5950357,0.00015,2]
[391074648,1760302240319,-440.29559581,0.00015,2]
[391074657,1760302243286,-359.6638906,0.00015,2]
[391074658,1760302243829,-260.95,0.00015,2]
[391074659,1760302243841,-2350.356272,0.00015,2]
[391074664,1760302246159,-837.30400002,0.00015,2]
[391074665,1760302246326,-11542.0,0.00015,2]
[391074666,1760302246337,-1788.7755258,0.00015,2]
[391074667,1760302246387,-631.98109136,0.00015,2]
[391074668,1760302246398,-3133.44544526,0.00015,2]
[391074679,1760302554500,3209.0,0.00027397,120]
[391074690,1760303108505,26692.101186,7.945e-05,2]
[391074705,1760303432297,-384.19,0.00013699,2]
[391074706,1760303432306,-280.51252939,0.000137,2]
[391074707,1760303432317,-923.99491733,0.000137,2]
[391074708,1760303432326,-1228.49760199,0.00013702,2]
[391074709,1760303432335,-167.1122217,0.00013756,2]
[391074710,1760303432344,-200.0,0.00013789,2]
[391074712,1760303432354,-150.0,0.00013825,2]
[391074714,1760303432363,-5.0815297,0.00013856,2]
[391074715,1760303432375,-2138.6584703,0.00013856,2]
[391074716,1760303432384,-500.0,0.00014058,2]
[391074717,1760303432393,-135.6371187,0.00014401,2]
[391074718,1760303432404,-258.87161287,0.00014401,2]
[391074719,1760303432518,-805.49126843,0.00014401,2]
[391074720,1760303432527,-300.0,0.00014401,2]
[391074721,1760303432537,-1200.0,0.00014401,2]
[391074722,1760303432547,-300.0,0.00014401,2]
[391074723,1760303432556,-232.99170891,0.00014402,2]
[391074724,1760303432565,-5242.69,0.00014402,2]
[391074725,1760303432575,-400.0,0.000145,5]
[391074726,1760303432585,-166.67,0.00014543,2]
[391074727,1760303432594,-689.53,0.00014551,2]
[391074728,1760303432603,-900.0,0.000146,5]
[391074729,1760303432612,-816.30956166,0.00014649,2]
[391074730,1760303432622,-510.10944067,0.000147,5]
[391074731,1760303432633,-789.89055933,0.000147,5]
[391074732,1760303432642,-509.48,0.00014729,2]
[391074733,1760303432651,-1800.0,0.000148,5]
[391074734,1760303432660,-250.0,0.00014849,2]
[391074735,1760303432670,-150.0,0.00014899,2]
[391074736,1760303432679,-828.7601,0.000149,2]
[391074737,1760303432688,-323.47664087,0.000149,2]
[391074738,1760303432697,-156.82757604,0.000149,2]
[391074739,1760303432707,-2200.0,0.000149,5]
[391074740,1760303432716,-2715.52651029,0.000149,2]
[391074741,1760303432725,-960.54798469,0.000149,2]
[391074742,1760303432734,-191.40641216,0.000149,2]
[391074743,1760303432743,-188.02963624,0.000149,2]
[391074744,1760303432752,-963.812,0.000149,2]
[391074745,1760303432761,-161.21904192,0.000149,2]
[391074746,1760303432770,-2330.3336,0.00014959,2]
[391074747,1760303432779,-618.52195246,0.00014973,2]
[391074748,1760303432788,-500.81021082,0.00014973,2]
[391074749,1760303432797,-504.14739135,0.00014973,2]
[391074750,1760303432806,-500.0,0.00014973,2]
[391074751,1760303432817,-500.0,0.00014973,2]
[391074752,1760303432826,-500.0,0.00014973,2]
[391074753,1760303432837,-500.0,0.00014973,2]
[391074754,1760303432846,-500.0,0.00014973,2]
[391074755,1760303432856,-502.54440047,0.00014973,2]
[391074756,1760303432866,-500.46984389,0.00014973,2]
[391074757,1760303432875,-352.96934458,0.00014973,2]
[391074758,1760303432887,-147.03065542,0.00014973,2]
[391074759,1760303432895,-315.48377645,0.00014973,2]
[391074760,1760303432912,-184.51622355,0.00014973,2]
[391074761,1760303432929,-500.0,0.00014973,2]
[391074762,1760303432941,-376.24015238,0.00014973,2]
[391074763,1760303432950,-500.0,0.00014973,2]
[391074764,1760303432961,-500.0,0.00014973,2]
[391074765,1760303432970,-500.0,0.00014973,2]
[391074766,1760303432980,-521.56570684,0.00014973,2]
[391074767,1760303432990,-500.0,0.00014973,2]
[391074768,1760303433000,-500.0,0.00014973,2]
[391074769,1760303433009,-13596.0,0.00014986,2]
[391074770,1760303433019,-151.0,0.00014991,2]
[391074771,1760303433029,-151.0,0.00014991,2]
[391074772,1760303433038,-151.0,0.00014991,2]
[391074773,1760303433047,-151.0,0.00014991,2]
[391074774,1760303433058,-151.0,0.00014991,2]
[391074775,1760303433072,-151.0,0.00014991,2]
[391074776,1760303433081,-151.0,0.00014991,2]
[391074777,1760303433093,-151.0,0.00014991,2]
[391074778,1760303433102,-151.0,0.00014991,2]
[391074779,1760303433111,-151.0,0.00014991,2]
[391074780,1760303433120,-151.0,0.00014991,2]
[391074781,1760303433130,-151.0,0.00014991,2]
[391074782,1760303433140,-151.0,0.00014991,2]
[391074783,1760303433149,-151.0,0.00014991,2]
[391074784,1760303433159,-227.74,0.00014991,2]
[391074785,1760303433168,-200.0,0.00014991,2]
[391074786,1760303433178,-413.29,0.00014991,2]
[391074787,1760303433187,-2500.0,0.00014996,2]
[391074788,1760303433197,-151.0,0.00014997,2]
[391074789,1760303433206,-335.451212,0.00014999,2]
[391074790,1760303433216,-258.87161287,0.00014999,2]
[391074791,1760303433225,-1000.0,0.00014999,2]
[391074792,1760303433235,-1000.0,0.00014999,2]
[391074793,1760303433244,-5009.07,0.00014999,2]
[391074794,1760303433254,-274.13688894,0.00014999,2]
[391074795,1760303433263,-162.986,0.00014999,2]
[391074796,1760303433272,-165.09146234,0.00014999,2]
[391074797,1760303433281,-500.0,0.00014999,2]
[391074798,1760303433293,-283.13886672,0.00014999,2]
[391074799,1760303433302,-250.0,0.00014999,2]
[391074800,1760303433311,-500.0,0.00014999,2]
[391074801,1760303433321,-500.0,0.00014999,2]
[391074802,1760303433330,-500.0,0.00014999,2]
[391074803,1760303433340,-500.0,0.00014999,2]
[391074804,1760303433349,-500.0,0.00014999,2]
[391074805,1760303433358,-500.0,0.00014999,2]
[391074806,1760303433369,-500.0,0.00014999,2]
[391074807,1760303433378,-500.0,0.00014999,2]
[391074808,1760303433388,-500.0,0.00014999,2]
[391074809,1760303433397,-500.0,0.00014999,2]
[391074810,1760303433406,-500.0,0.00014999,2]
[391074811,1760303433415,-500.0,0.00014999,2]
[391074812,1760303433424,-500.0,0.00014999,2]
[391074813,1760303433433,-500.0,0.00014999,2]
[391074814,1760303433442,-500.0,0.00014999,2]
[391074815,1760303433451,-578.72539789,0.00014999,2]
[391074816,1760303433461,-500.0,0.00014999,2]
[391074817,1760303433470,-500.0,0.00014999,2]
[391074818,1760303433480,-500.0,0.00014999,2]
[391074819,1760303433489,-500.0,0.00014999,2]
[391074820,1760303433499,-500.0,0.00014999,2]
[391074821,1760303433508,-505.8601711,0.00014999,2]
[391074822,1760303433517,-500.0,0.00014999,2]
[391074823,1760303433526,-500.0,0.00014999,2]
[391074824,1760303433536,-500.0,0.00014999,2]
[391074825,1760303433546,-500.0,0.00014999,2]
[391074826,1760303433556,-472.38513373,0.00014999,2]
[391074827,1760303433565,-500.0,0.00014999,2]
[391074828,1760303433575,-500.0,0.00014999,2]
[391074829,1760303433584,-500.0,0.00014999,2]
[391074830,1760303433593,-500.0,0.00014999,2]
[391074831,1760303433603,-500.0,0.00014999,2]
[391074832,1760303433612,-500.0,0.00014999,2]
[391074833,1760303433622,-424.84995948,0.00014999,2]
[391074834,1760303433631,-1000.0,0.00014999,2]
[391074835,1760303433640,-150.0,0.00014999,2]
[391074836,1760303433648,-50743.76845915,0.00015,2]
[391074837,1760303433661,-2987.93745374,0.00015,2]
[391074842,1760303436775,-11249.32232908,0.00015,2]
[391074848,1760303438497,-4061.74896745,0.00015,2]
[391074861,1760303440339,-12964.83906655,0.00015,2]
[391074862,1760303440398,-5840.0,0.00015,2]
[391074871,1760303443798,-10818.58280038,0.00015,2]
[391074872,1760303443853,-1483.79825522,0.00015,2]
[391074873,1760303443962,-1444.71244552,0.00015,2]
[391074874,1760303443971,-2709.48755448,0.00015,2]
[391074959,1760303447296,-295.27799994,0.00014999,2]
[391074960,1760303447307,-4964.72199919,0.00015,2]
[391074962,1760303537412,509.04098012,0.00027,120]
[391074967,1760303693866,2000.0,0.00012501,2]
[391074983,1760304126715,160.63,7.239e-05,2]
[391074984,1760304126936,160.63,8.446e-05,2]
[391074985,1760304127159,160.63,9.652e-05,2]
[391074986,1760304127595,160.63,0.00010859,2]
[391074987,1760304127852,160.63,0.00012065,2]
[391074989,1760304157348,150.0,0.00027397,120]
[391074994,1760304362979,2500.0,0.00027397,120]
[391074996,1760304411634,769.225,0.00027397,120]
[391075022,1760304631498,-160.63,0.00013272,2]
[391075024,1760304631507,-200.0,0.00014135,2]
[391075025,1760304631516,-327.59,0.00014183,3]
[391075026,1760304631561,-338.41,0.00014183,3]
[391075027,1760304631570,-250.0,0.00014268,7]
[391075028,1760304631579,-160.63,0.00014479,2]
[391075029,1760304631590,-786.98556269,0.00014535,2]
[391075030,1760304631601,-89.97916206,0.00014535,2]
[391075031,1760304631610,-300.0,0.00014597,2]
[391075032,1760304631619,-300.0,0.00014597,2]
[391075033,1760304631628,-378.14950294,0.00014597,2]
[391075034,1760304631639,-579.635,0.00014597,2]
[391075035,1760304631650,-242.21549706,0.00014597,2]
[391075036,1760304631659,-1153.0,0.00014598,2]
[391075037,1760304631668,-427.16674561,0.00014599,2]
[391075038,1760304631677,-1452.54189953,0.00014599,2]
[391075039,1760304631688,-547.45810047,0.00014599,2]
[391075040,1760304631697,-971.04451347,0.00014635,2]
[391075041,1760304631706,-3816.33483299,0.00014635,2]
[391075042,1760304631717,-856.63705024,0.00014635,2]
[391075046,1760304631770,-1187.58811677,0.00014635,2]
[391075048,1760304631779,-692.89534323,0.0001485,2]
[391075050,1760304631790,-1576.96291537,0.0001485,2]
[391075052,1760304631799,-952.78827788,0.00014899,2]
[391075058,1760304631850,-51.63950004,0.00014899,2]
[391075060,1760304631860,-150.0,0.00014899,2]
[391075062,1760304631869,-577.1839,0.000149,2]
[391075064,1760304631879,-420.48,0.000149,2]
[391075066,1760304631888,-5347.77849647,0.000149,2]
[391075068,1760304631899,-881.60532832,0.000149,2]
[391075070,1760304631908,-143.25835381,0.000149,2]
[391075073,1760304631919,-288.04383403,0.000149,2]
[391075075,1760304631928,-284.77774891,0.000149,2]
[391075077,1760304631938,-199.06590465,0.000149,2]
[391075079,1760304631947,-160.45570024,0.000149,2]
[391075081,1760304631956,-67.55681217,0.000149,2]
[391075084,1760304631967,-1001.19057989,0.000149,2]
[391075087,1760304631978,-947.60102954,0.000149,2]
[391075089,1760304631987,-823.32684402,0.000149,2]
[391075091,1760304631996,-328.79240745,0.000149,2]
[391075093,1760304632005,-700.0,0.0001497,2]
[391075095,1760304632014,-1063.24389141,0.0001497,2]
[391075097,1760304632023,-420.62639581,0.00014973,2]
[391075099,1760304632032,-500.0,0.00014973,2]
[391075101,1760304632042,-500.0,0.00014973,2]
[391075103,1760304632051,-507.46837532,0.00014973,2]
[391075105,1760304632060,-500.0,0.00014973,2]
[391075107,1760304632068,-500.0,0.00014973,2]
[391075109,1760304632077,-500.0,0.00014973,2]
[391075111,1760304632086,-500.0,0.00014973,2]
[391075113,1760304632095,-500.0,0.00014973,2]
[391075115,1760304632104,-500.0,0.00014973,2]
[391075117,1760304632113,-500.0,0.00014973,2]
[391075119,1760304632122,-500.0,0.00014973,2]
[391075121,1760304632131,-500.0,0.00014973,2]
[391075123,1760304632141,-162.03,0.0001499,2]
[391075125,1760304632149,-162.03,0.0001499,2]
[391075127,1760304632158,-162.03,0.0001499,2]
[391075129,1760304632167,-162.03,0.0001499,2]
[391075130,1760304632176,-151.18,0.00014996,2]
[391075132,1760304632185,-500.0,0.00014999,2]
[391075134,1760304632195,-295.69661333,0.00014999,2]
[391075136,1760304632204,-500.0,0.00014999,2]
[391075138,1760304632213,-150.0,0.00014999,2]
[391075140,1760304632223,-1000.0,0.00014999,2]
[391075142,1760304632232,-467.6594,0.00014999,2]
[391075147,1760304632501,-150.0,0.00014999,2]
[391075148,1760304632511,-670.34,0.00014999,2]
[391075149,1760304632520,-84959.04827067,0.00015,2]
[391075150,1760304632532,-878.03,0.00015,2]
[391075151,1760304632543,-8264.4960001,0.00015,2]
[391075152,1760304632554,-2337.4656,0.00015,2]
[391075153,1760304632597,-500.0,0.00014999,2]
[391075154,1760304632606,-500.0,0.00014999,2]
[391075155,1760304632616,-2958.3538,0.00015,2]
[391075168,1760304637492,-500.0,0.00014999,2]
[391075170,1760304637502,-417.06945888,0.00014999,2]
[391075172,1760304637513,-82.93054112,0.00014999,2]
[391075173,1760304637526,-25917.06945888,0.00015,2]
[391075175,1760304637538,-1701.2,0.00015,2]
[391075177,1760304637549,-5629.52816445,0.00015,2]
[391075179,1760304637570,-23032.9960369,0.00015,2]
[391075184,1760304637617,-387.77739,0.00015,2]
[391075186,1760304637628,-787.348564,0.00015,2]
[391075187,1760304637639,-57937.82018984,0.00015,2]
[391075188,1760304637650,-14335.94483512,0.00015,2]
[391075189,1760304637659,-11064.05526114,0.00015,2]
[391075190,1760304637670,-391.99159999,0.00015,2]
[391075191,1760304637681,-5785.0,0.00015,2]
[391075192,1760304637695,-44922.83688919,0.00015,2]
[391075193,1760304637707,-859.17381,0.00015,2]
[391075194,1760304637719,-1072.35,0.00015,2]
[391075195,1760304637730,-5314.35203336,0.00015,2]
[391075196,1760304637742,-297.48547296,0.00015,2]
[391075197,1760304637753,-16886.7098131,0.00015,2]
[391075335,1760304639502,-1288.87070409,0.00015,2]
[391075336,1760304639513,-464.56,0.00015,2]
[391075337,1760304639523,-5693.3,0.00015,2]
[391075338,1760304639534,-1170.3,0.00015,2]
[391075348,1760304643191,-505.4818,0.00015,2]
[391075350,1760304643203,-864567.40013702,0.00015,2]
[391075354,1760304643250,-79691.75047449,0.00015,2]
[391075355,1760304643262,-10235.28168,0.00015,2]
[391075356,1760304643273,-57384.99999999,0.00015,2]
[391075357,1760304643288,-1295.28079492,0.00015,2]
[391075358,1760304643299,-503.192478,0.00015,2]
[391075359,1760304643311,-366.0160415,0.00015,2]
[391075360,1760304643323,-22982.96,0.00015,2]
[391075361,1760304643338,-311250.0,0.00015,2]
[391075362,1760304643357,-1325.00002,0.00015,2]
[391075363,1760304643368,-346183.52612917,0.00015,2]
[391075364,1760304643378,-2680466.13529133,0.00015,2]
[391075367,1760304643387,-500.0,0.00015,2]
[391075370,1760304643399,-1369.8186561,0.00015,2]
[391075372,1760304643408,-151.0,0.00015,2]
[391075375,1760304643417,-4126.5830107,0.00015,2]
[391075378,1760304643427,-8504.2074641,0.00015,2]
[391075382,1760304643437,-817.42177296,0.00015,2]
[391075383,1760304643446,-2547.4125387,0.00015,2]
[391075385,1760304643455,-2332.9849238,0.00015,2]
[391075388,1760304643464,-1440115.31385621,0.00015,2]
[391075390,1760304643476,-154.227105,0.00015,2]
[391075393,1760304643486,-154.227105,0.00015,2]
[391075397,1760304643495,-154.227105,0.00015,2]
[391075400,1760304643504,-151.0,0.00015,2]
[391075402,1760304643512,-175.5599,0.00015,2]
[391075404,1760304643522,-151.0,0.00015,2]
[391075407,1760304643531,-154.227105,0.00015,2]
[391075408,1760304643540,-151.0,0.00015,2]
[391075409,1760304643549,-151.0,0.00015,2]
[391075411,1760304643559,-151.0,0.00015,2]
[391075412,1760304643568,-151.0,0.00015,2]